[Event "*** SCC Grand Prix: Titled Tuesday Blitz"]
[Site "Chess.com"]
[Date "2020.09.08"]
[Round "10"]
[White "bsnsun"]
[Black "NikolaGry"]
[Result "0-1"]
[WhiteElo "2430"]
[BlackElo "2602"]
[TimeControl "180+1"]
[EndTime "11:57:59 PDT"]
[Termination "NikolaGry won by resignation"]

1. e4 {[%clk 0:03:00.9]} 1... e5 {[%clk 0:02:58.9]} 2. Nf3 {[%clk 0:03:00.7]}
2... d6 {[%clk 0:02:59.1]} 3. Bc4 {[%clk 0:02:59.2]} 3... Nf6 {[%clk 0:02:58.6]}
4. Ng5 {[%clk 0:02:40.1]} 4... d5 {[%clk 0:02:57.4]} 5. exd5 {[%clk 0:02:39.6]}
5... h6 {[%clk 0:02:56.9]} 6. Nf3 {[%clk 0:02:33.8]} 6... e4 {[%clk 0:02:57]} 7.
Ne5 {[%clk 0:02:27.6]} 7... Bd6 {[%clk 0:02:26.1]} 8. d4 {[%clk 0:02:25.9]} 8...
exd3 {[%clk 0:01:55.8]} 9. Nxd3 {[%clk 0:02:25.7]} 9... O-O {[%clk 0:01:47.9]}
10. Nc3 {[%clk 0:01:56.2]} 10... Re8+ {[%clk 0:01:45.7]} 11. Be3 {[%clk
0:01:48.9]} 11... Ng4 {[%clk 0:01:42.6]} 12. Qf3 {[%clk 0:00:43.3]} 12... Nxe3
{[%clk 0:01:39.5]} 13. fxe3 {[%clk 0:00:43.4]} 13... Qh4+ {[%clk 0:01:39.1]} 14.
g3 {[%clk 0:00:43.4]} 14... Qxc4 {[%clk 0:01:38.9]} 15. Rf1 {[%clk 0:00:43]}
15... Rf8 {[%clk 0:01:37.7]} 16. Qf2 {[%clk 0:00:29.7]} 16... b5 {[%clk
0:01:28.1]} 17. O-O-O {[%clk 0:00:29.2]} 17... b4 {[%clk 0:01:26.4]} 18. Nb1
{[%clk 0:00:27.9]} 18... Bg4 {[%clk 0:01:13]} 19. Rd2 {[%clk 0:00:26.9]} 19...
Qxa2 {[%clk 0:01:07.7]} 20. e4 {[%clk 0:00:27.2]} 20... Nd7 {[%clk 0:01:07.6]}
21. Qd4 {[%clk 0:00:22.2]} 21... Rae8 {[%clk 0:00:51.8]} 22. Re1 {[%clk
0:00:21.8]} 22... f6 {[%clk 0:00:47.3]} 23. h4 {[%clk 0:00:17.5]} 23... h5
{[%clk 0:00:46.1]} 24. Rg1 {[%clk 0:00:15.1]} 24... a5 {[%clk 0:00:45.2]} 25. b3
{[%clk 0:00:14.4]} 25... a4 {[%clk 0:00:43.5]} 26. c3 {[%clk 0:00:12.7]} 26...
Qa1 {[%clk 0:00:41.5]} 27. bxa4 {[%clk 0:00:10.9]} 27... bxc3 {[%clk 0:00:37.7]}
28. Qxc3 {[%clk 0:00:11.3]} 28... Qxc3+ {[%clk 0:00:37.3]} 29. Nxc3 {[%clk
0:00:11.2]} 29... Ra8 {[%clk 0:00:36.3]} 30. Nb5 {[%clk 0:00:11.1]} 30... Rxa4
{[%clk 0:00:33.9]} 31. Rb2 {[%clk 0:00:07.3]} 31... Ra1+ {[%clk 0:00:31.6]} 32.
Rb1 {[%clk 0:00:06.7]} 32... Rxb1+ {[%clk 0:00:31.6]} 33. Kxb1 {[%clk
0:00:07.6]} 33... Rb8 {[%clk 0:00:31]} 34. Kc2 {[%clk 0:00:08.1]} 34... Rxb5
{[%clk 0:00:31]} 35. Ra1 {[%clk 0:00:09]} 35... Bf3 {[%clk 0:00:28.8]} 36. Ra8+
{[%clk 0:00:08.9]} 36... Kh7 {[%clk 0:00:28.9]} 37. Re8 {[%clk 0:00:09.4]} 37...
Nc5 {[%clk 0:00:23.9]} 38. Nf4 {[%clk 0:00:08.8]} 38... Bxe4+ {[%clk 0:00:23.3]}
39. Kc3 {[%clk 0:00:08.5]} 39... Bxf4 {[%clk 0:00:21.8]} 40. gxf4 {[%clk
0:00:08.4]} 40... Bxd5 {[%clk 0:00:21.2]} 41. Kd4 {[%clk 0:00:08.4]} 41... Bf7
{[%clk 0:00:20.4]} 42. Re7 {[%clk 0:00:07.6]} 42... Bg6 {[%clk 0:00:20.4]} 43.
f5 {[%clk 0:00:07.4]} 43... Bxf5 {[%clk 0:00:19.3]} 44. Ke3 {[%clk 0:00:07.3]}
44... Ne6 {[%clk 0:00:18.8]} 45. Re8 {[%clk 0:00:06.8]} 45... Re5+ {[%clk
0:00:18.8]} 46. Kd2 {[%clk 0:00:06.3]} 46... c5 {[%clk 0:00:18.7]} 47. Kc3
{[%clk 0:00:06.4]} 47... Re3+ {[%clk 0:00:17.9]} 48. Kc4 {[%clk 0:00:06.7]}
48... Re4+ {[%clk 0:00:18.3]} 49. Kc3 {[%clk 0:00:06.9]} 49... Rxh4 {[%clk
0:00:17.3]} 50. Ra8 {[%clk 0:00:05.3]} 50... Re4 {[%clk 0:00:17.3]} 51. Re8
{[%clk 0:00:04.6]} 51... h4 {[%clk 0:00:15.9]} 52. Ra8 {[%clk 0:00:04.5]} 52...
Re1 {[%clk 0:00:15.3]} 53. Ra2 {[%clk 0:00:05.4]} 53... h3 {[%clk 0:00:15]} 54.
Rh2 {[%clk 0:00:05.7]} 54... Ng5 {[%clk 0:00:15.2]} 55. Kc4 {[%clk 0:00:05.1]}
55... Rg1 {[%clk 0:00:14.8]} 56. Kxc5 {[%clk 0:00:04.9]} 56... Be4 {[%clk
0:00:14.7]} 57. Kd4 {[%clk 0:00:04.4]} 57... Bg2 {[%clk 0:00:14.7]} 58. Ke3
{[%clk 0:00:04.2]} 58... Rh1 {[%clk 0:00:13.9]} 59. Rxh1 {[%clk 0:00:02.7]}
59... Bxh1 {[%clk 0:00:14.1]} 60. Kf2 {[%clk 0:00:03.6]} 60... Kg6 {[%clk
0:00:14.3]} 61. Kg3 {[%clk 0:00:03.9]} 61... Bc6 {[%clk 0:00:14.4]} 62. Kh2
{[%clk 0:00:04.3]} 62... Kh5 {[%clk 0:00:14.6]} 63. Kg3 {[%clk 0:00:04.8]} 63...
g6 {[%clk 0:00:14.8]} 64. Kh2 {[%clk 0:00:05.3]} 64... Kg4 {[%clk 0:00:14.1]}
65. Kg1 {[%clk 0:00:05.2]} 65... Kg3 {[%clk 0:00:11.8]} 66. Kf1 {[%clk
0:00:05.5]} 66... h2 {[%clk 0:00:11.8]} 67. Ke2 {[%clk 0:00:06.4]} 67... h1=Q
{[%clk 0:00:11.6]} 0-1

[Event "*** SCC Grand Prix: Titled Tuesday Blitz"]
[Site "Chess.com"]
[Date "2020.09.08"]
[Round "10"]
[White "Aborigen_came"]
[Black "Gvetadze"]
[Result "1-0"]
[WhiteElo "2702"]
[BlackElo "2480"]
[TimeControl "180+1"]
[EndTime "11:58:00 PDT"]
[Termination "Aborigen_came won by checkmate"]

1. Nc3 {[%clk 0:03:00.9]} 1... c5 {[%clk 0:03:00.9]} 2. e4 {[%clk 0:02:57.6]}
2... g6 {[%clk 0:03:00.8]} 3. h4 {[%clk 0:02:56.5]} 3... h5 {[%clk 0:03:00.1]}
4. Nh3 {[%clk 0:02:52.7]} 4... d6 {[%clk 0:02:58.7]} 5. Bb5+ {[%clk 0:02:43.8]}
5... Bd7 {[%clk 0:02:55.4]} 6. a4 {[%clk 0:02:40.9]} 6... a6 {[%clk 0:02:54.9]}
7. Bxd7+ {[%clk 0:02:37.3]} 7... Qxd7 {[%clk 0:02:53.1]} 8. Nd5 {[%clk
0:02:32.2]} 8... Qd8 {[%clk 0:02:51.3]} 9. a5 {[%clk 0:02:30.5]} 9... Nc6 {[%clk
0:02:50.3]} 10. c3 {[%clk 0:02:10.8]} 10... Nxa5 {[%clk 0:02:43.6]} 11. b4
{[%clk 0:02:06.1]} 11... Nc6 {[%clk 0:02:26.2]} 12. b5 {[%clk 0:02:05.8]} 12...
Ne5 {[%clk 0:02:25.7]} 13. d4 {[%clk 0:02:03.7]} 13... cxd4 {[%clk 0:01:59.6]}
14. cxd4 {[%clk 0:02:01.4]} 14... Ng4 {[%clk 0:01:59.4]} 15. b6 {[%clk
0:01:39.9]} 15... Rc8 {[%clk 0:01:53.2]} 16. Qa4+ {[%clk 0:01:31.2]} 16... Qd7
{[%clk 0:01:48.1]} 17. Nc7+ {[%clk 0:01:30.9]} 17... Kd8 {[%clk 0:01:48]} 18.
Qb3 {[%clk 0:01:21.1]} 18... e6 {[%clk 0:01:40.9]} 19. f3 {[%clk 0:01:09.5]}
19... N4f6 {[%clk 0:01:34.4]} 20. Bg5 {[%clk 0:01:07.4]} 20... Be7 {[%clk
0:01:32.7]} 21. O-O {[%clk 0:01:03.9]} 21... Nh7 {[%clk 0:01:26.1]} 22. Rfc1
{[%clk 0:00:38.5]} 22... Nxg5 {[%clk 0:01:12.2]} 23. hxg5 {[%clk 0:00:35]} 23...
Bf8 {[%clk 0:00:52.3]} 24. d5 {[%clk 0:00:16.4]} 24... e5 {[%clk 0:00:18.9]} 25.
Ra2 {[%clk 0:00:15.5]} 25... f6 {[%clk 0:00:18.1]} 26. Rac2 {[%clk 0:00:13.5]}
26... Ke7 {[%clk 0:00:15.8]} 27. Ne6 {[%clk 0:00:12.8]} 27... Rxc2 {[%clk
0:00:15.2]} 28. Rxc2 {[%clk 0:00:13.7]} 28... fxg5 {[%clk 0:00:13.9]} 29. Rc7
{[%clk 0:00:13.3]} 29... Nf6 {[%clk 0:00:14.4]} 30. Nhxg5 {[%clk 0:00:11.9]}
30... Bh6 {[%clk 0:00:14.2]} 31. Rxd7+ {[%clk 0:00:09.4]} 31... Nxd7 {[%clk
0:00:13.9]} 32. Qc4 {[%clk 0:00:08.8]} 32... Nxb6 {[%clk 0:00:13.5]} 33. Qc7+
{[%clk 0:00:08.6]} 33... Nd7 {[%clk 0:00:13.9]} 34. Qxb7 {[%clk 0:00:08.7]}
34... Rb8 {[%clk 0:00:13.4]} 35. Qxa6 {[%clk 0:00:08.2]} 35... Rb1+ {[%clk
0:00:13]} 36. Kh2 {[%clk 0:00:08]} 36... h4 {[%clk 0:00:11.5]} 37. Qa8 {[%clk
0:00:06.9]} 37... Rb8 {[%clk 0:00:10.2]} 38. Qa7 {[%clk 0:00:06.9]} 38... Rh8
{[%clk 0:00:08.4]} 39. Kh3 {[%clk 0:00:06.7]} 39... Rg8 {[%clk 0:00:07.1]} 40.
Kxh4 {[%clk 0:00:06.4]} 40... Rh8 {[%clk 0:00:06.7]} 41. Kg3 {[%clk 0:00:06.6]}
41... Rg8 {[%clk 0:00:06.7]} 42. Kf2 {[%clk 0:00:06.5]} 42... Bg7 {[%clk
0:00:07.1]} 43. Qc7 {[%clk 0:00:05.5]} 43... Bf6 {[%clk 0:00:07.5]} 44. Nh3
{[%clk 0:00:04.9]} 44... Rb8 {[%clk 0:00:07.2]} 45. Kg3 {[%clk 0:00:04.8]} 45...
Rb2 {[%clk 0:00:06.9]} 46. Nf2 {[%clk 0:00:05]} 46... Bg5 {[%clk 0:00:07]} 47.
Qd8+ {[%clk 0:00:04.7]} 47... Kf7 {[%clk 0:00:05.5]} 48. Qxd7+ {[%clk
0:00:04.6]} 48... Be7 {[%clk 0:00:03.9]} 49. Ng5+ {[%clk 0:00:05.1]} 49... Kf6
{[%clk 0:00:04]} 50. Nh7+ {[%clk 0:00:04.9]} 50... Kg7 {[%clk 0:00:04.9]} 51.
Qxe7+ {[%clk 0:00:04.2]} 51... Kh6 {[%clk 0:00:05.8]} 52. Qxd6 {[%clk
0:00:04.7]} 52... Kxh7 {[%clk 0:00:06]} 53. Qxe5 {[%clk 0:00:05]} 53... Kh6
{[%clk 0:00:06.9]} 54. Qxb2 {[%clk 0:00:04.9]} 54... Kh5 {[%clk 0:00:07.8]} 55.
Qd2 {[%clk 0:00:05.5]} 55... g5 {[%clk 0:00:08.7]} 56. Ng4 {[%clk 0:00:05.4]}
56... Kg6 {[%clk 0:00:08.9]} 57. Qe2 {[%clk 0:00:05.6]} 57... Kh5 {[%clk
0:00:09.8]} 58. Kf2 {[%clk 0:00:06.1]} 58... Kg6 {[%clk 0:00:10.6]} 59. Ke3
{[%clk 0:00:06.3]} 59... Kh5 {[%clk 0:00:11.5]} 60. Kd3 {[%clk 0:00:07.1]} 60...
Kh4 {[%clk 0:00:12.4]} 61. Qd2 {[%clk 0:00:07.4]} 61... Kg3 {[%clk 0:00:13.3]}
62. Qc2 {[%clk 0:00:07.8]} 62... Kf4 {[%clk 0:00:13.6]} 63. Qc3 {[%clk
0:00:08.1]} 63... Kg3 {[%clk 0:00:14.5]} 64. Qf6 {[%clk 0:00:08.1]} 64... Kh4
{[%clk 0:00:15.4]} 65. Qg6 {[%clk 0:00:08.3]} 65... Kg3 {[%clk 0:00:16.3]} 66.
Qxg5 {[%clk 0:00:08.6]} 66... Kxg2 {[%clk 0:00:16]} 67. Qd8 {[%clk 0:00:09.5]}
67... Kf1 {[%clk 0:00:16.7]} 68. Ne3+ {[%clk 0:00:10.3]} 68... Ke1 {[%clk
0:00:17]} 69. e5 {[%clk 0:00:10.4]} 69... Kf2 {[%clk 0:00:17.9]} 70. Nf5 {[%clk
0:00:11]} 70... Ke1 {[%clk 0:00:18.7]} 71. Nd6 {[%clk 0:00:11.6]} 71... Kd1
{[%clk 0:00:19.6]} 72. f4 {[%clk 0:00:11.8]} 72... Ke1 {[%clk 0:00:20.5]} 73. f5
{[%clk 0:00:12.4]} 73... Kf2 {[%clk 0:00:21.4]} 74. f6 {[%clk 0:00:13.3]} 74...
Ke1 {[%clk 0:00:22.3]} 75. e6 {[%clk 0:00:13.6]} 75... Kd1 {[%clk 0:00:23.2]}
76. Qc7 {[%clk 0:00:13]} 76... Ke1 {[%clk 0:00:23.1]} 77. Qc5 {[%clk 0:00:12.6]}
77... Kd1 {[%clk 0:00:23.2]} 78. Qg1# {[%clk 0:00:12.5]} 1-0

[Event "*** SCC Grand Prix: Titled Tuesday Blitz"]
[Site "Chess.com"]
[Date "2020.09.08"]
[Round "10"]
[White "Nara_Kh"]
[Black "glebus008"]
[Result "1-0"]
[WhiteElo "2362"]
[BlackElo "2161"]
[TimeControl "180+1"]
[EndTime "11:58:05 PDT"]
[Termination "Nara_Kh won by checkmate"]

1. g3 {[%clk 0:03:00.9]} 1... g6 {[%clk 0:02:54.7]} 2. Bg2 {[%clk 0:03:01.2]}
2... Bg7 {[%clk 0:02:54.7]} 3. h4 {[%clk 0:03:01.7]} 3... h5 {[%clk 0:02:54.3]}
4. d4 {[%clk 0:02:58.9]} 4... d5 {[%clk 0:02:52.5]} 5. Bg5 {[%clk 0:02:57.9]}
5... Bg4 {[%clk 0:02:37.5]} 6. c3 {[%clk 0:02:51.5]} 6... c6 {[%clk 0:02:37]} 7.
Nd2 {[%clk 0:02:50.5]} 7... Nd7 {[%clk 0:02:36.6]} 8. a4 {[%clk 0:02:46.9]} 8...
a5 {[%clk 0:02:36]} 9. Qc2 {[%clk 0:02:45]} 9... Qc7 {[%clk 0:02:34]} 10. e4
{[%clk 0:02:45.3]} 10... dxe4 {[%clk 0:02:31.8]} 11. Nxe4 {[%clk 0:02:45.3]}
11... Ngf6 {[%clk 0:02:28.7]} 12. Ne2 {[%clk 0:02:40]} 12... Bf5 {[%clk
0:02:26.9]} 13. O-O {[%clk 0:02:27]} 13... Nxe4 {[%clk 0:02:19.5]} 14. Bxe4
{[%clk 0:02:26.4]} 14... Bxe4 {[%clk 0:02:15.4]} 15. Qxe4 {[%clk 0:02:27.3]}
15... e6 {[%clk 0:02:13]} 16. Bf4 {[%clk 0:02:23.6]} 16... Qb6 {[%clk
0:02:08.8]} 17. Bd6 {[%clk 0:02:15.9]} 17... Bf8 {[%clk 0:02:00.4]} 18. Qf4
{[%clk 0:02:09.3]} 18... Bxd6 {[%clk 0:01:58.1]} 19. Qxd6 {[%clk 0:02:09.1]}
19... Rc8 {[%clk 0:01:53.9]} 20. Nf4 {[%clk 0:01:49.7]} 20... Qd8 {[%clk
0:01:52.6]} 21. Nxe6 {[%clk 0:01:40.2]} 21... fxe6 {[%clk 0:01:50.8]} 22. Qxe6+
{[%clk 0:01:40.5]} 22... Qe7 {[%clk 0:01:50.8]} 23. Qxg6+ {[%clk 0:01:40.5]}
23... Kd8 {[%clk 0:01:41.3]} 24. Rae1 {[%clk 0:01:39.2]} 24... Qf6 {[%clk
0:01:38.6]} 25. Qd3 {[%clk 0:01:34.2]} 25... Kc7 {[%clk 0:01:34.7]} 26. Re4
{[%clk 0:01:31.9]} 26... Rce8 {[%clk 0:01:33.2]} 27. Rf4 {[%clk 0:01:31.8]}
27... Qd6 {[%clk 0:01:30.4]} 28. Qf5 {[%clk 0:01:27]} 28... b6 {[%clk
0:01:22.1]} 29. Qd3 {[%clk 0:01:12.3]} 29... Rhg8 {[%clk 0:01:17.9]} 30. Kh2
{[%clk 0:01:10.2]} 30... Ne5 {[%clk 0:01:14.2]} 31. Qa6 {[%clk 0:01:07.3]} 31...
Ng4+ {[%clk 0:01:13.5]} 32. Kh3 {[%clk 0:01:05.6]} 32... Qd7 {[%clk 0:00:49]}
33. Kg2 {[%clk 0:00:56.7]} 33... Ra8 {[%clk 0:00:47.7]} 34. Qc4 {[%clk
0:00:54.4]} 34... Qd5+ {[%clk 0:00:47.3]} 35. Qxd5 {[%clk 0:00:53.8]} 35... cxd5
{[%clk 0:00:48.2]} 36. Rf5 {[%clk 0:00:54.3]} 36... Rae8 {[%clk 0:00:41.7]} 37.
Rxd5 {[%clk 0:00:47.3]} 37... Re2 {[%clk 0:00:41.1]} 38. Rxh5 {[%clk 0:00:46]}
38... Rxb2 {[%clk 0:00:36.8]} 39. Kg1 {[%clk 0:00:43.2]} 39... Rf8 {[%clk
0:00:33]} 40. f4 {[%clk 0:00:25.8]} 40... Ne3 {[%clk 0:00:30.8]} 41. Re1 {[%clk
0:00:25.3]} 41... Nc4 {[%clk 0:00:24.1]} 42. Re7+ {[%clk 0:00:23]} 42... Kb8
{[%clk 0:00:21.7]} 43. Rhh7 {[%clk 0:00:20.2]} 43... Rg8 {[%clk 0:00:21.3]} 44.
Rhg7 {[%clk 0:00:19.4]} 44... Rxg7 {[%clk 0:00:20.6]} 45. Rxg7 {[%clk
0:00:20.3]} 45... Ra2 {[%clk 0:00:18.8]} 46. h5 {[%clk 0:00:20.4]} 46... Ne3
{[%clk 0:00:18.8]} 47. h6 {[%clk 0:00:19.6]} 47... Nf5 {[%clk 0:00:18.5]} 48.
Rg8+ {[%clk 0:00:18.8]} 48... Kb7 {[%clk 0:00:17.6]} 49. h7 {[%clk 0:00:19.2]}
49... Rxa4 {[%clk 0:00:16.4]} 50. h8=Q {[%clk 0:00:18.6]} 50... Ka6 {[%clk
0:00:14.2]} 51. Ra8+ {[%clk 0:00:17.3]} 51... Kb5 {[%clk 0:00:14.4]} 52. Qe8+
{[%clk 0:00:17.1]} 52... Kc4 {[%clk 0:00:13.9]} 53. Qxa4+ {[%clk 0:00:17.1]}
53... Kd3 {[%clk 0:00:14.8]} 54. Qb5+ {[%clk 0:00:16.2]} 54... Kxc3 {[%clk
0:00:14.5]} 55. Qxf5 {[%clk 0:00:15.9]} 55... Kb4 {[%clk 0:00:14.1]} 56. g4
{[%clk 0:00:15.6]} 56... a4 {[%clk 0:00:13.8]} 57. g5 {[%clk 0:00:16]} 57... a3
{[%clk 0:00:13.7]} 58. g6 {[%clk 0:00:16.1]} 58... b5 {[%clk 0:00:13.7]} 59. g7
{[%clk 0:00:15.3]} 59... a2 {[%clk 0:00:14.2]} 60. g8=Q {[%clk 0:00:12.2]} 60...
Kc3 {[%clk 0:00:14]} 61. Rxa2 {[%clk 0:00:11.4]} 61... b4 {[%clk 0:00:13.1]} 62.
Qc5+ {[%clk 0:00:11]} 62... Kd3 {[%clk 0:00:12.6]} 63. Qgc4+ {[%clk 0:00:10.6]}
63... Ke3 {[%clk 0:00:12.6]} 64. Re2+ {[%clk 0:00:10.6]} 64... Kxf4 {[%clk
0:00:12.5]} 65. Qe5+ {[%clk 0:00:10.4]} 65... Kg4 {[%clk 0:00:12.5]} 66. Qg8+
{[%clk 0:00:10]} 66... Kh4 {[%clk 0:00:12.1]} 67. Qeh8# {[%clk 0:00:09.8]} 1-0

[Event "*** SCC Grand Prix: Titled Tuesday Blitz"]
[Site "Chess.com"]
[Date "2020.09.08"]
[Round "10"]
[White "ChessLover0108"]
[Black "wonderfultime"]
[Result "1/2-1/2"]
[WhiteElo "2699"]
[BlackElo "2923"]
[TimeControl "180+1"]
[EndTime "11:58:13 PDT"]
[Termination "Game drawn by repetition"]

1. d4 {[%clk 0:02:59]} 1... d5 {[%clk 0:03:00.3]} 2. c4 {[%clk 0:02:58]} 2... c6
{[%clk 0:03:00.8]} 3. Nf3 {[%clk 0:02:57.5]} 3... Nf6 {[%clk 0:03:00.9]} 4. e3
{[%clk 0:02:57]} 4... Bf5 {[%clk 0:03:00.1]} 5. Nc3 {[%clk 0:02:57.2]} 5... e6
{[%clk 0:03:00.6]} 6. Nh4 {[%clk 0:02:57.3]} 6... Be4 {[%clk 0:03:01.2]} 7. f3
{[%clk 0:02:57.8]} 7... Bg6 {[%clk 0:03:01.8]} 8. Nxg6 {[%clk 0:02:57.7]} 8...
hxg6 {[%clk 0:03:02.7]} 9. Qb3 {[%clk 0:02:53.6]} 9... Qc7 {[%clk 0:03:02.8]}
10. Bd2 {[%clk 0:02:47.9]} 10... Be7 {[%clk 0:03:03.1]} 11. cxd5 {[%clk
0:02:47.4]} 11... cxd5 {[%clk 0:03:03.2]} 12. O-O-O {[%clk 0:02:47.5]} 12... a6
{[%clk 0:03:01.6]} 13. Kb1 {[%clk 0:02:46.2]} 13... Nbd7 {[%clk 0:02:43]} 14.
Rc1 {[%clk 0:02:40.1]} 14... Qb6 {[%clk 0:02:43.5]} 15. Qa4 {[%clk 0:02:17.4]}
15... O-O {[%clk 0:02:12.6]} 16. Bd3 {[%clk 0:02:09.6]} 16... Rfc8 {[%clk
0:02:08.2]} 17. g4 {[%clk 0:02:09.6]} 17... Rc6 {[%clk 0:02:03.4]} 18. g5 {[%clk
0:01:56.4]} 18... Nh5 {[%clk 0:02:02.7]} 19. e4 {[%clk 0:01:56.8]} 19... dxe4
{[%clk 0:01:58.5]} 20. fxe4 {[%clk 0:01:20.2]} 20... Rac8 {[%clk 0:01:54.4]} 21.
Rhf1 {[%clk 0:01:04.2]} 21... Bb4 {[%clk 0:01:46]} 22. d5 {[%clk 0:00:42.4]}
22... Bxc3 {[%clk 0:01:15.8]} 23. Rc2 {[%clk 0:00:08.4]} 23... Nc5 {[%clk
0:00:46.1]} 24. Qc4 {[%clk 0:00:05]} 24... exd5 {[%clk 0:00:15.1]} 25. exd5
{[%clk 0:00:04.9]} 25... R6c7 {[%clk 0:00:04]} 26. Bxc3 {[%clk 0:00:05]} 26...
Nxd3 {[%clk 0:00:04.2]} 27. Qxd3 {[%clk 0:00:05.9]} 27... Kh7 {[%clk 0:00:04.2]}
28. Ka1 {[%clk 0:00:03.1]} 28... Rd7 {[%clk 0:00:03.8]} 29. Rd1 {[%clk
0:00:03.2]} 29... Rcd8 {[%clk 0:00:03.5]} 30. Qc4 {[%clk 0:00:02.9]} 30... Qb5
{[%clk 0:00:03.6]} 31. Qxb5 {[%clk 0:00:02.5]} 31... axb5 {[%clk 0:00:04.5]} 32.
Rcd2 {[%clk 0:00:03.4]} 32... Rd6 {[%clk 0:00:04.4]} 33. Bb4 {[%clk 0:00:03.6]}
33... R6d7 {[%clk 0:00:04.7]} 34. d6 {[%clk 0:00:04.5]} 34... Nf4 {[%clk
0:00:05.2]} 35. a3 {[%clk 0:00:04.9]} 35... Ne6 {[%clk 0:00:04.6]} 36. h4 {[%clk
0:00:05.6]} 36... Kg8 {[%clk 0:00:04.2]} 37. Rf1 {[%clk 0:00:05.5]} 37... b6
{[%clk 0:00:03.8]} 38. Rc2 {[%clk 0:00:05]} 38... Nd4 {[%clk 0:00:03.9]} 39. Rc7
{[%clk 0:00:02.6]} 39... Nf5 {[%clk 0:00:04.1]} 40. Rc6 {[%clk 0:00:01.3]} 40...
f6 {[%clk 0:00:04.2]} 41. Rxb6 {[%clk 0:00:01.6]} 41... Kf7 {[%clk 0:00:04.3]}
42. gxf6 {[%clk 0:00:02]} 42... gxf6 {[%clk 0:00:05.2]} 43. Rxb5 {[%clk
0:00:02.9]} 43... Ke6 {[%clk 0:00:05.7]} 44. Rb6 {[%clk 0:00:03.2]} 44... Nxh4
{[%clk 0:00:05.7]} 45. a4 {[%clk 0:00:04.1]} 45... Nf5 {[%clk 0:00:05.7]} 46. a5
{[%clk 0:00:04.7]} 46... Ra8 {[%clk 0:00:06]} 47. b3 {[%clk 0:00:04.4]} 47... g5
{[%clk 0:00:05.6]} 48. Kb2 {[%clk 0:00:04.8]} 48... g4 {[%clk 0:00:05.3]} 49. a6
{[%clk 0:00:05.3]} 49... g3 {[%clk 0:00:05.7]} 50. Bc5 {[%clk 0:00:04.9]} 50...
g2 {[%clk 0:00:05.4]} 51. Rg1 {[%clk 0:00:04]} 51... Rc8 {[%clk 0:00:05]} 52. b4
{[%clk 0:00:03.7]} 52... Nh4 {[%clk 0:00:04.9]} 53. Kb3 {[%clk 0:00:02.9]} 53...
Rg8 {[%clk 0:00:05.1]} 54. Ka4 {[%clk 0:00:03.1]} 54... Nf3 {[%clk 0:00:05.4]}
55. Rd1 {[%clk 0:00:02.7]} 55... g1=Q {[%clk 0:00:04.7]} 56. Bxg1 {[%clk
0:00:02.8]} 56... Nxg1 {[%clk 0:00:05.6]} 57. Ka5 {[%clk 0:00:02]} 57... Nf3
{[%clk 0:00:05.7]} 58. Rb7 {[%clk 0:00:02.3]} 58... Rdd8 {[%clk 0:00:05.9]} 59.
Kb6 {[%clk 0:00:02.3]} 59... Ne5 {[%clk 0:00:06.2]} 60. b5 {[%clk 0:00:02.3]}
60... Rxd6+ {[%clk 0:00:06.5]} 61. Rxd6+ {[%clk 0:00:02]} 61... Kxd6 {[%clk
0:00:07.4]} 62. a7 {[%clk 0:00:02.9]} 62... Nc4+ {[%clk 0:00:07.8]} 63. Ka6
{[%clk 0:00:03.3]} 63... Rg1 {[%clk 0:00:07.7]} 64. Rb8 {[%clk 0:00:03.6]} 64...
Ra1+ {[%clk 0:00:07.7]} 65. Kb7 {[%clk 0:00:04.5]} 65... Na5+ {[%clk 0:00:07.7]}
66. Kb6 {[%clk 0:00:04.1]} 66... Nc4+ {[%clk 0:00:07.5]} 67. Kb7 {[%clk
0:00:04.6]} 67... Na5+ {[%clk 0:00:05.3]} 68. Kc8 {[%clk 0:00:04]} 68... Nc4
{[%clk 0:00:04.8]} 69. Kb7 {[%clk 0:00:02]} 1/2-1/2